fUSD/lending_fUSD_20250905
["ID","MTS","AMOUNT","RATE_DAILY","PERIOD"]
[383759815,1757109174581,-400.0,0.00037534,10]
[383759816,1757109174590,-400.0,0.00037534,10]
[383759817,1757109174599,-442.27,0.00037534,10]
[383759818,1757109174609,-474.21,0.00037534,10]
[383759819,1757109174618,-400.0,0.00037534,10]
[383759820,1757109174627,-400.0,0.00037534,10]
[383759821,1757109174637,-603.16,0.00037534,10]
[383759822,1757109174646,-436.72,0.00037534,10]
[383759823,1757109174655,-407.14,0.00037534,10]
[383759824,1757109174666,-8442.03,0.00037534,10]
[383759825,1757109174675,-443.36,0.00037534,10]
[383759826,1757109174685,-621.71,0.00037534,10]
[383759827,1757109174696,-400.0,0.00037534,10]
[383759828,1757109174705,-400.0,0.00037534,10]
[383759829,1757109174715,-400.0,0.00037534,10]
[383759830,1757109174725,-406.08,0.00037534,10]
[383759831,1757109174735,-400.0,0.00037534,10]
[383759832,1757109174744,-400.0,0.00037534,10]
[383759833,1757109174754,-400.0,0.00037534,10]
[383759834,1757109174763,-400.0,0.00037534,10]
[383759835,1757109174774,-1439.09,0.00037534,10]
[383759836,1757109174783,-400.0,0.00037534,10]
[383759837,1757109174792,-475.57,0.00037534,10]
[383759838,1757109174802,-400.0,0.00037534,10]
[383759839,1757109174811,-2688.71,0.00037534,10]
[383759840,1757109174821,-1300.45,0.00037534,10]
[383759841,1757109174831,-400.0,0.00037534,10]
[383759842,1757109174840,-400.0,0.00037534,10]
[383759843,1757109174849,-400.0,0.00037534,10]
[383759844,1757109174859,-530.86,0.00037534,10]
[383759845,1757109174869,-400.0,0.00037534,10]
[383759846,1757109174878,-423.37,0.00037534,10]
[383759847,1757109174887,-400.0,0.00037534,10]
[383759848,1757109174897,-442.37,0.00037534,10]
[383759849,1757109174907,-425.64,0.00037534,10]
[383759850,1757109174916,-400.0,0.00037534,10]
[383759851,1757109174925,-400.0,0.00037534,10]
[383759852,1757109174935,-400.0,0.00037534,10]
[383759853,1757109174944,-4723.5,0.00037534,10]
[383759854,1757109174954,-446.4,0.00037534,10]
[383759855,1757109174963,-514.62,0.00037534,10]
[383759856,1757109174977,-400.0,0.00037534,10]
[383759857,1757109174986,-783.27,0.00037534,10]
[383759858,1757109174996,-400.0,0.00037534,10]
[383759859,1757109175006,-425.55,0.00037534,10]
[383759860,1757109175015,-483.04,0.00037534,10]
[383759861,1757109175025,-440.05,0.00037534,10]
[383759862,1757109175034,-400.0,0.00037534,10]
[383759863,1757109175044,-400.0,0.00037534,10]
[383759864,1757109175054,-400.0,0.00037534,10]
[383759865,1757109175064,-483.3,0.00037534,10]
[383759866,1757109175073,-400.0,0.00037534,10]
[383759867,1757109175083,-500.0,0.00037534,10]
[383759868,1757109175093,-599.12,0.00037534,10]
[383759869,1757109175102,-400.0,0.00037534,10]
[383759870,1757109175112,-677.0,0.00037534,10]
[383759871,1757109175121,-400.0,0.00037534,10]
[383759872,1757109175131,-1085.17,0.00037534,10]
[383759873,1757109175140,-400.0,0.00037534,10]
[383759874,1757109175149,-400.0,0.00037534,10]
[383759875,1757109175159,-400.0,0.00037534,10]
[383759876,1757109175168,-3844.91,0.00037534,10]
[383759877,1757109175177,-400.000001,0.00037534,10]
[383759878,1757109175187,-1689.46,0.00037534,10]
[383759879,1757109175197,-421.08,0.00037534,10]
[383759880,1757109175207,-400.0,0.00037534,10]
[383759881,1757109175216,-877.43,0.00037534,10]
[383759882,1757109175226,-400.0,0.00037534,10]
[383759883,1757109175235,-537.76,0.00037534,10]
[383759884,1757109175245,-400.0,0.00037534,10]
[383759885,1757109175254,-400.0,0.00037534,10]
[383759886,1757109175264,-436.27,0.00037534,10]
[383759887,1757109175273,-479.41,0.00037534,10]
[383759888,1757109175282,-400.0,0.00037534,10]
[383759889,1757109175291,-400.0,0.00037534,10]
[383759890,1757109175300,-400.0,0.00037534,10]
[383759891,1757109175311,-400.0,0.00037534,10]
[383759892,1757109175321,-931.34,0.00037534,10]
[383759893,1757109175331,-400.0,0.00037534,10]
[383759894,1757109175341,-400.0,0.00037534,10]
[383759895,1757109175351,-400.0,0.00037534,10]
[383759896,1757109175361,-2095.01,0.00037534,10]
[383759897,1757109175371,-434.12,0.00037534,10]
[383759898,1757109175381,-400.0,0.00037534,10]
[383759899,1757109175390,-400.0,0.00037534,10]
[383759900,1757109175400,-1265.08,0.00037534,10]
[383759901,1757109175409,-828.12,0.00037534,10]
[383759902,1757109175419,-400.0,0.00037534,10]
[383759903,1757109175428,-400.0,0.00037534,10]
[383759904,1757109175437,-490.29,0.00037534,10]
[383759905,1757109175447,-400.0,0.00037534,10]
[383759906,1757109175457,-407.95,0.00037534,10]
[383759907,1757109175466,-371.15422611,0.00037534,10]
[383759908,1757109175475,-445.3,0.00037534,10]
[383759909,1757109175484,-1988.71,0.00037534,10]
[383759910,1757109175494,-400.0,0.00037534,10]
[383759911,1757109175503,-400.0,0.00037534,10]
[383759912,1757109175511,-400.0,0.00037534,10]
[383759913,1757109175522,-400.0,0.00037534,10]
[383759914,1757109175531,-531.57,0.00037534,10]
[383759915,1757109175541,-428.34,0.00037534,10]
[383759916,1757109175550,-401.29,0.00037534,10]
[383759917,1757109175559,-400.0,0.00037534,10]
[383759918,1757109175569,-720.58,0.00037534,10]
[383759919,1757109175578,-400.0,0.00037534,10]
[383759920,1757109175587,-400.0,0.00037534,10]
[383759921,1757109175597,-400.0,0.00037534,10]
[383759922,1757109175607,-400.0,0.00037534,10]
[383759923,1757109175617,-400.0,0.00037534,10]
[383759924,1757109175627,-471.02,0.00037534,10]
[383759925,1757109175638,-400.0,0.00037534,10]
[383759926,1757109175648,-2254.56,0.00037534,10]
[383759927,1757109175658,-400.0,0.00037534,10]
[383759928,1757109175668,-786.84,0.00037534,10]
[383759929,1757109175682,-400.0,0.00037534,10]
[383759930,1757109175693,-400.0,0.00037534,10]
[383759931,1757109175708,-400.0,0.00037534,10]
[383759932,1757109175718,-1906.65,0.00037534,10]
[383759933,1757109175729,-400.0,0.00037534,10]
[383759934,1757109175739,-400.0,0.00037534,10]
[383759935,1757109175749,-3337.86,0.00037534,10]
[383759936,1757109175758,-400.0,0.00037534,10]
[383759937,1757109175767,-400.0,0.00037534,10]
[383759938,1757109175776,-400.0,0.00037534,10]
[383759939,1757109175785,-404.67,0.00037534,10]
[383759940,1757109175795,-400.0,0.00037534,10]
[383759941,1757109175805,-516.46,0.00037534,10]
[383759942,1757109175816,-911.18,0.00037534,10]
[383759943,1757109175825,-511.96,0.00037534,10]
[383759944,1757109175836,-488.47,0.00037534,10]
[383759945,1757109175845,-1977.28,0.00037534,10]
[383759946,1757109175855,-400.0,0.00037534,10]
[383759947,1757109175864,-400.0,0.00037534,10]
[383759948,1757109175873,-156.99260834,0.00037534,10]
[383759949,1757109175883,-457.95,0.00037534,10]
[383759950,1757109175893,-400.0,0.00037534,10]
[383759951,1757109175902,-400.0,0.00037534,10]
[383759952,1757109175911,-527.02,0.00037534,10]
[383759953,1757109175920,-400.0,0.00037534,10]
[383759954,1757109175930,-400.0,0.00037534,10]
[383759955,1757109175939,-400.0,0.00037534,10]
[383759956,1757109175951,-697.63,0.00037534,10]
[383759957,1757109175961,-400.0,0.00037534,10]
[383759958,1757109175973,-689.76,0.00037534,10]
[383759959,1757109175983,-400.0,0.00037534,10]
[383759960,1757109175993,-400.0,0.00037534,10]
[383759961,1757109176002,-400.0,0.00037534,10]
[383759962,1757109176011,-400.0,0.00037534,10]
[383759963,1757109176020,-400.0,0.00037534,10]
[383759964,1757109176029,-403.13691474,0.00037534,10]
[383759965,1757109176038,-6963.13,0.00037534,10]
[383759966,1757109176048,-433.65,0.00037534,10]
[383759967,1757109176058,-419.06,0.00037534,10]
[383759968,1757109176067,-400.0,0.00037534,10]
[383759969,1757109176076,-400.0,0.00037534,10]
[383759970,1757109176085,-436.45,0.00037534,10]
[383759971,1757109176095,-1232.95,0.00037534,10]
[383759972,1757109176104,-195.83197508,0.00037534,10]
[383759973,1757109176114,-400.0,0.00037534,10]
[383759974,1757109176123,-618.53,0.00037534,10]
[383759975,1757109176133,-410.62,0.00037534,10]
[383759976,1757109176142,-521.29,0.00037534,10]
[383759977,1757109176151,-434.12,0.00037534,10]
[383759978,1757109176160,-409.61,0.00037534,10]
[383759979,1757109176170,-469.08,0.00037534,10]
[383759980,1757109176179,-168.0,0.00037537,7]
[383759981,1757109176188,-407.0,0.0003755,2]
[383759982,1757109176200,-150.0,0.0003757,120]
[383759983,1757109176210,-4253.81751552,0.0003759,2]
[383759984,1757109176219,-2227.17602,0.0003761,2]
[383759985,1757109176229,-500.0,0.00037612,2]
[383759986,1757109176238,-202.26221381,0.00037626,2]
[383759987,1757109176248,-10000.0,0.00037648,31]
[383759988,1757109176257,-1178.96147,0.00037688,30]
[383759989,1757109176267,-150.0,0.00037689,120]
[383759990,1757109176276,-1000.0,0.00037699,30]
[383759991,1757109176285,-150.0,0.00037719,120]
[383759992,1757109176295,-170.90555146,0.00037726,30]
[383759993,1757109176304,-615.07,0.00037729,30]
[383759994,1757109176313,-150.0,0.00037749,120]
[383759995,1757109176322,-700.0,0.0003777,2]
[383759996,1757109176332,-293.49,0.00037786,30]
[383759997,1757109176341,-339.30249,0.00037808,10]
[383759998,1757109176350,-634.468343,0.00037808,10]
[383759999,1757109176360,-170.344832,0.00037808,10]
[383760000,1757109176369,-400.0,0.00037808,10]
[383760001,1757109176379,-400.0,0.00037808,10]
[383760002,1757109176389,-400.0,0.00037808,10]
[383760003,1757109176399,-400.0,0.00037808,10]
[383760004,1757109176409,-400.0,0.00037808,10]
[383760005,1757109176418,-400.0,0.00037808,10]
[383760006,1757109176429,-400.0,0.00037808,10]
[383760007,1757109176438,-400.0,0.00037808,10]
[383760008,1757109176447,-365.18067584,0.00037808,10]
[383760009,1757109176457,-436.98,0.00037808,10]
[383760010,1757109176466,-417.8,0.00037808,10]
[383760011,1757109176477,-400.0,0.00037808,10]
[383760012,1757109176487,-400.0,0.00037808,10]
[383760013,1757109176496,-395.53135999,0.00037808,10]
[383760014,1757109176505,-400.0,0.00037808,10]
[383760015,1757109176514,-400.0,0.00037808,10]
[383760016,1757109176524,-400.0,0.00037808,10]
[383760017,1757109176532,-400.0,0.00037808,10]
[383760018,1757109176542,-1000.0,0.00037808,10]
[383760019,1757109176551,-400.0,0.00037808,10]
[383760020,1757109176567,-400.0,0.00037808,10]
[383760021,1757109176582,-400.0,0.00037808,10]
[383760022,1757109176591,-400.0,0.00037808,10]
[383760023,1757109176602,-400.0,0.00037808,10]
[383760024,1757109176612,-400.0,0.00037808,10]
[383760025,1757109176622,-400.0,0.00037808,10]
[383760026,1757109176631,-400.0,0.00037808,10]
[383760027,1757109176640,-400.0,0.00037808,10]
[383760028,1757109176653,-400.0,0.00037808,10]
[383760029,1757109176663,-400.0,0.00037808,10]
[383760030,1757109176673,-400.0,0.00037808,10]
[383760031,1757109176682,-400.0,0.00037808,10]
[383760032,1757109176691,-400.0,0.00037808,10]
[383760033,1757109176701,-400.0,0.00037808,10]
[383760034,1757109176711,-400.0,0.00037808,10]
[383760035,1757109176720,-400.0,0.00037808,10]
[383760036,1757109176730,-400.0,0.00037808,10]
[383760037,1757109176739,-400.0,0.00037808,10]
[383760038,1757109176748,-357.77438334,0.00037808,10]
[383760039,1757109176758,-400.0,0.00037808,10]
[383760040,1757109176767,-944.57,0.00037808,10]
[383760041,1757109176778,-400.0,0.00037808,10]
[383760042,1757109176787,-300.0,0.00037808,10]
[383760043,1757109176796,-400.0,0.00037808,10]
[383760044,1757109176806,-400.0,0.00037808,10]
[383760045,1757109176815,-400.0,0.00037808,10]
[383760046,1757109176824,-846.07,0.00037808,10]
[383760047,1757109176833,-400.0,0.00037808,10]
[383760048,1757109176843,-400.0,0.00037808,10]
[383760049,1757109176852,-400.0,0.00037808,10]
[383760050,1757109176862,-400.0,0.00037808,10]
[383760051,1757109176871,-400.0,0.00037808,10]
[383760052,1757109176881,-400.0,0.00037808,10]
[383760053,1757109176891,-400.0,0.00037808,10]
[383760054,1757109176900,-564.87,0.00037808,10]
[383760055,1757109176910,-400.0,0.00037808,10]
[383760056,1757109176920,-278.00495505,0.00037808,10]
[383760057,1757109176931,-400.0,0.00037808,10]
[383760058,1757109176940,-420.42482727,0.00037808,10]
[383760059,1757109176950,-765.62,0.00037808,10]
[383760060,1757109176959,-400.0,0.00037808,10]
[383760061,1757109176971,-400.0,0.00037808,10]
[383760062,1757109176980,-400.0,0.00037808,10]
[383760063,1757109176989,-400.0,0.00037808,10]
[383760064,1757109176999,-538.77623802,0.00037808,10]
[383760065,1757109177008,-400.0,0.00037808,10]
[383760066,1757109177019,-400.0,0.00037808,10]
[383760067,1757109177028,-442.80093489,0.00037808,10]
[383760068,1757109177038,-400.0,0.00037808,10]
[383760069,1757109177049,-400.0,0.00037808,10]
[383760070,1757109177059,-400.0,0.00037808,10]
[383760071,1757109177068,-400.0,0.00037808,10]
[383760072,1757109177079,-400.0,0.00037808,10]
[383760073,1757109177089,-400.0,0.00037808,10]
[383760074,1757109177099,-400.0,0.00037808,10]
[383760075,1757109177109,-400.0,0.00037808,10]
[383760076,1757109177118,-400.0,0.00037808,10]
[383760077,1757109177127,-538.61065472,0.00037808,10]
[383760078,1757109177137,-433.33,0.00037808,10]
[383760079,1757109177146,-400.0,0.00037808,10]
[383760080,1757109177155,-1155.55,0.00037808,10]
[383760081,1757109177165,-400.0,0.00037808,10]
[383760082,1757109177174,-400.0,0.00037808,10]
[383760083,1757109177183,-400.0,0.00037808,10]
[383760084,1757109177192,-400.0,0.00037808,10]
[383760085,1757109177203,-400.0,0.00037808,10]
[383760086,1757109177212,-400.0,0.00037808,10]
[383760087,1757109177221,-400.0,0.00037808,10]
[383760088,1757109177231,-299.79,0.00037808,19]
[383760089,1757109177241,-394.42902363,0.00037808,10]
[383760090,1757109177250,-405.24,0.00037808,10]
[383760091,1757109177262,-678.29,0.00037808,10]
[383760092,1757109177273,-400.0,0.00037808,10]
[383760093,1757109177283,-400.0,0.00037808,10]
[383760094,1757109177292,-414.11,0.00037808,10]
[383760095,1757109177301,-400.0,0.00037808,10]
[383760096,1757109177310,-413.3,0.00037808,10]
[383760097,1757109177320,-400.0,0.00037808,10]
[383760098,1757109177329,-400.0,0.00037808,10]
[383760099,1757109177339,-400.0,0.00037808,10]
[383760100,1757109177348,-400.0,0.00037808,10]
[383760101,1757109177358,-400.0,0.00037808,10]
[383760102,1757109177367,-400.0,0.00037808,10]
[383760103,1757109177377,-400.0,0.00037808,10]
[383760104,1757109177386,-400.0,0.00037808,10]
[383760105,1757109177396,-418.03,0.00037808,10]
[383760106,1757109177405,-400.0,0.00037808,10]
[383760107,1757109177414,-400.0,0.00037808,10]
[383760108,1757109177424,-400.0,0.00037808,10]
[383760109,1757109177433,-400.0,0.00037808,10]
[383760110,1757109177442,-400.0,0.00037808,10]
[383760111,1757109177454,-400.0,0.00037808,10]
[383760112,1757109177464,-343.80736532,0.00037808,10]
[383760113,1757109177474,-400.0,0.00037808,10]
[383760114,1757109177483,-400.0,0.00037808,10]
[383760115,1757109177493,-400.0,0.00037808,10]
[383760116,1757109177502,-400.0,0.00037808,10]
[383760117,1757109177511,-400.0,0.00037808,10]
[383760118,1757109177520,-400.0,0.00037808,10]
[383760119,1757109177530,-403.60990925,0.00037808,10]
[383760120,1757109177539,-400.0,0.00037808,10]
[383760121,1757109177548,-400.0,0.00037808,10]
[383760122,1757109177557,-400.0,0.00037808,10]
[383760123,1757109177566,-400.0,0.00037808,10]
[383760124,1757109177576,-400.0,0.00037808,10]
[383760125,1757109177586,-420.25,0.00037808,10]
[383760126,1757109177596,-400.0,0.00037808,10]
[383760127,1757109177605,-400.0,0.00037808,10]
[383760128,1757109177615,-437.75,0.00037808,10]
[383760129,1757109177624,-400.0,0.00037808,10]
[383760130,1757109177634,-400.0,0.00037808,10]
[383760131,1757109177642,-400.0,0.00037808,10]
[383760132,1757109177651,-506.4,0.00037808,10]
[383760133,1757109177663,-400.0,0.00037808,10]
[383760134,1757109177673,-400.0,0.00037808,10]
[383760135,1757109177682,-437.87,0.00037808,10]
[383760136,1757109177692,-400.0,0.00037808,10]
[383760137,1757109177702,-400.0,0.00037808,10]
[383760138,1757109177711,-400.0,0.00037808,10]
[383760139,1757109177720,-400.0,0.00037808,10]
[383760140,1757109177730,-400.0,0.00037808,10]
[383760141,1757109177739,-451.2,0.00037808,10]
[383760142,1757109177748,-400.0,0.00037808,10]
[383760143,1757109177758,-409.37443188,0.00037808,10]
[383760144,1757109177768,-400.0,0.00037808,10]
[383760145,1757109177778,-507.92,0.00037808,10]
[383760146,1757109177788,-400.0,0.00037808,10]
[383760147,1757109177797,-400.0,0.00037808,10]
[383760148,1757109177807,-400.0,0.00037808,10]
[383760149,1757109177818,-400.0,0.00037808,10]
[383760150,1757109177828,-400.0,0.00037808,10]
[383760151,1757109177837,-400.0,0.00037808,10]
[383760152,1757109177847,-400.0,0.00037808,10]
[383760153,1757109177857,-400.0,0.00037808,10]
[383760154,1757109177867,-400.0,0.00037808,10]
[383760155,1757109177876,-461.35,0.00037808,10]
[383760156,1757109177886,-458.84,0.00037808,10]
[383760157,1757109177895,-400.0,0.00037808,10]
[383760158,1757109177905,-428.49,0.00037808,10]
[383760159,1757109177914,-1054.45,0.00037808,10]
[383760160,1757109177924,-409.45,0.00037808,10]
[383760161,1757109177933,-400.0,0.00037808,10]
[383760162,1757109177943,-400.0,0.00037808,10]
[383760163,1757109177953,-400.0,0.00037808,10]
[383760164,1757109178115,-542.29,0.00037808,10]
[383760165,1757109178129,-508.21,0.00037808,10]
[383760166,1757109178139,-400.0,0.00037808,10]
[383760167,1757109178148,-400.0,0.00037808,10]
[383760168,1757109178159,-493.63,0.00037808,10]
[383760169,1757109178169,-400.0,0.00037808,10]
[383760170,1757109178180,-449.3,0.00037808,10]
[383760171,1757109178190,-425.32,0.00037808,10]
[383760172,1757109178204,-518.21,0.00037808,10]
[383760173,1757109178214,-510.04,0.00037808,10]
[383760174,1757109178225,-414.48,0.00037808,10]
[383760175,1757109178235,-400.0,0.00037808,10]
[383760176,1757109178246,-400.0,0.00037808,10]
[383760177,1757109178256,-400.0,0.00037808,10]
[383760178,1757109178267,-153.113189,0.00037808,10]
[383760179,1757109178278,-400.0,0.00037808,10]
[383760180,1757109178288,-970.87,0.00037808,10]
[383760181,1757109178298,-490.71,0.00037808,10]
[383760182,1757109178308,-436.72,0.00037808,10]
[383760183,1757109178317,-400.0,0.00037808,10]
[383760184,1757109178326,-414.95,0.00037808,10]
[383760185,1757109178336,-400.0,0.00037808,10]
[383760186,1757109178345,-400.0,0.00037808,10]
[383760187,1757109178355,-400.0,0.00037808,10]
[383760188,1757109178364,-447.82,0.00037808,10]
[383760189,1757109178374,-647.6,0.00037808,10]
[383760190,1757109178384,-400.0,0.00037808,10]
[383760191,1757109178392,-400.0,0.00037808,10]
[383760192,1757109178399,-151.98341845,0.00037808,10]
[383760193,1757109178406,-400.0,0.00037808,10]
[383760194,1757109178412,-425.6,0.00037808,10]
[383760195,1757109178422,-400.0,0.00037808,10]
[383760196,1757109178432,-487.94732283,0.00037808,10]
[383760197,1757109178442,-490.57,0.00037808,10]
[383760198,1757109178455,-400.0,0.00037808,10]
[383760199,1757109178465,-400.0,0.00037808,10]
[383760200,1757109178475,-400.0,0.00037808,10]
[383760201,1757109178484,-641.44,0.00037808,10]
[383760202,1757109178495,-400.0,0.00037808,10]
[383760203,1757109178504,-419.23,0.00037808,10]
[383760204,1757109178514,-400.0,0.00037808,10]
[383760205,1757109178523,-401.8,0.00037808,10]
[383760206,1757109178533,-403.59,0.00037808,10]
[383760207,1757109178543,-400.0,0.00037808,10]
[383760208,1757109178553,-400.0,0.00037808,10]
[383760209,1757109178564,-400.0,0.00037808,10]
[383760210,1757109178574,-548.51,0.00037808,10]
[383760211,1757109178584,-452.54,0.00037808,10]
[383760212,1757109178594,-400.0,0.00037808,10]
[383760213,1757109178604,-400.0,0.00037808,10]
[383760214,1757109178614,-440.39,0.00037808,10]
[383760215,1757109178625,-400.0,0.00037808,10]
[383760216,1757109178635,-400.0,0.00037808,10]
[383760217,1757109178645,-679.14,0.00037808,10]
[383760218,1757109178656,-433.62,0.00037808,10]
[383760219,1757109178665,-400.0,0.00037808,10]
[383760220,1757109178675,-400.0,0.00037808,10]
[383760221,1757109178685,-267.91644071,0.00037808,10]
[383760222,1757109178695,-400.0,0.00037808,10]
[383760223,1757109178707,-589.1,0.00037808,10]
[383760224,1757109178717,-551.08,0.00037808,10]
[383760225,1757109178728,-415.82,0.00037808,10]
[383760226,1757109178738,-576.99,0.00037808,10]
[383760227,1757109178749,-500.17420842,0.00037808,10]
[383760228,1757109178759,-400.0,0.00037808,10]
[383760229,1757109178770,-455.37,0.00037808,10]
[383760230,1757109178781,-410.32,0.00037808,10]
[383760231,1757109178791,-497.74,0.00037808,10]
[383760232,1757109178800,-400.0,0.00037808,10]
[383760233,1757109178810,-400.0,0.00037808,10]
[383760234,1757109178821,-498.14,0.00037808,10]
[383760235,1757109178831,-400.0,0.00037808,10]
[383760236,1757109178841,-878.01,0.00037808,10]
[383760237,1757109178851,-400.0,0.00037808,10]
[383760238,1757109178861,-229.86277948,0.00037808,10]
[383760239,1757109178872,-400.0,0.00037808,10]
[383760240,1757109178881,-1227.44,0.00037808,10]
[383760241,1757109178891,-400.0,0.00037808,10]
[383760242,1757109178901,-400.0,0.00037808,10]
[383760243,1757109178912,-601.8,0.00037808,10]
[383760244,1757109178923,-400.0,0.00037808,10]
[383760245,1757109178933,-400.0,0.00037808,10]
[383760246,1757109178943,-400.0,0.00037808,10]
[383760247,1757109178955,-404.89,0.00037808,10]
[383760248,1757109178966,-400.0,0.00037808,10]
[383760249,1757109178982,-400.0,0.00037808,10]
[383760250,1757109178992,-414.05,0.00037808,10]
[383760251,1757109179002,-562.13,0.00037808,10]
[383760252,1757109179012,-400.0,0.00037808,10]
[383760253,1757109179022,-400.0,0.00037808,10]
[383760254,1757109179032,-457.02,0.00037808,10]
[383760255,1757109179042,-400.0,0.00037808,10]
[383760256,1757109179052,-400.0,0.00037808,10]
[383760257,1757109179062,-519.36,0.00037808,10]
[383760258,1757109179072,-400.0,0.00037808,10]
[383760259,1757109179082,-400.0,0.00037808,10]
[383760260,1757109179092,-400.0,0.00037808,10]
[383760261,1757109179102,-400.0,0.00037808,10]
[383760262,1757109179112,-400.0,0.00037808,10]
[383760263,1757109179122,-400.0,0.00037808,10]
[383760264,1757109179132,-400.0,0.00037808,10]
[383760265,1757109179142,-464.19,0.00037808,10]
[383760266,1757109179152,-400.0,0.00037808,10]
[383760267,1757109179161,-509.57,0.00037808,10]
[383760268,1757109179172,-400.0,0.00037808,10]
[383760269,1757109179181,-400.0,0.00037808,10]
[383760270,1757109179191,-400.0,0.00037808,10]
[383760271,1757109179202,-400.0,0.00037808,10]
[383760272,1757109179212,-400.0,0.00037808,10]
[383760273,1757109179222,-536.82,0.00037808,10]
[383760274,1757109179232,-400.0,0.00037808,10]
[383760275,1757109179242,-400.0,0.00037808,10]
[383760276,1757109179252,-400.0,0.00037808,10]
[383760277,1757109179261,-400.0,0.00037808,10]
[383760278,1757109179271,-456.25,0.00037808,10]
[383760279,1757109179281,-400.0,0.00037808,10]
[383760280,1757109179291,-400.0,0.00037808,10]
[383760281,1757109179301,-400.0,0.00037808,10]
[383760282,1757109179310,-400.0,0.00037808,10]
[383760283,1757109179320,-400.0,0.00037808,10]
[383760284,1757109179330,-398.85475573,0.00037808,10]
[383760285,1757109179340,-400.0,0.00037808,10]
[383760286,1757109179350,-400.0,0.00037808,10]
[383760287,1757109179360,-1325.01,0.00037808,10]
[383760288,1757109179370,-662.17,0.00037808,10]
[383760289,1757109179380,-400.0,0.00037808,10]
[383760290,1757109179389,-475.33,0.00037808,10]
[383760291,1757109179399,-400.0,0.00037808,10]
[383760292,1757109179409,-400.0,0.00037808,10]
[383760293,1757109179419,-580.54,0.00037808,10]
[383760294,1757109179428,-400.0,0.00037808,10]
[383760295,1757109179438,-468.08,0.00037808,10]
[383760296,1757109179448,-400.0,0.00037808,10]
[383760297,1757109179459,-400.0,0.00037808,10]
[383760298,1757109179469,-400.0,0.00037808,10]
[383760299,1757109179479,-504.21,0.00037808,10]
[383760300,1757109179489,-400.0,0.00037808,10]
[383760301,1757109179499,-470.77,0.00037808,10]
[383760302,1757109179509,-400.0,0.00037808,10]
[383760303,1757109179519,-400.0,0.00037808,10]
[383760304,1757109179529,-417.63,0.00037808,10]
[383760305,1757109179539,-400.0,0.00037808,10]
[383760306,1757109179549,-400.0,0.00037808,10]
[383760307,1757109179559,-406.01,0.00037808,10]
[383760308,1757109179568,-400.0,0.00037808,10]
[383760309,1757109179578,-311.35952398,0.00037808,10]
[383760310,1757109179588,-400.0,0.00037808,10]
[383760311,1757109179598,-400.0,0.00037808,10]
[383760312,1757109179608,-560.94,0.00037808,10]
[383760313,1757109179619,-400.0,0.00037808,10]
[383760314,1757109179630,-183.14453551,0.00037808,10]